[Event "MCR zen 2022"]
[Site "Hotel Opera, Jaromerice nad Rokytnou, Czech Republic"]
[Date "????.??.??"]
[Round "8.1"]
[White "Pilsova, Karolina"]
[Black "Lhotska, Anna"]
[Result "1-0"]
[TimeControl "90 min/40 moves + 30 min + 30s/move"]
[WhiteElo "2229"]
[BlackElo "2029"]

1. e4 {[%clk 01:30:57]} {[%emt 00:00:02]} c5 {[%clk 01:30:54]} {[%emt
00:00:06]} 2. Nf3 {[%clk 01:31:22]} {[%emt 00:00:05]} d6 {[%clk 01:31:20]}
{[%emt 00:00:05]} 3. Bb5+ {[%clk 01:31:45]} {[%emt 00:00:07]} Nd7 {[%clk
01:31:45]} {[%emt 00:00:05]} 4. O-O {[%clk 01:32:05]} {[%emt 00:00:09]} a6
{[%clk 01:32:11]} {[%emt 00:00:05]} 5. Bd3 {[%clk 01:32:19]} {[%emt 00:00:15]}
Ngf6 {[%clk 01:31:49]} {[%emt 00:00:51]} 6. Re1 {[%clk 01:32:29]} {[%emt
00:00:20]} g6 {[%clk 01:31:57]} {[%emt 00:00:22]} 7. c3 {[%clk 01:32:41]}
{[%emt 00:00:18]} Bg7 {[%clk 01:32:06]} {[%emt 00:00:21]} 8. Bc2 {[%clk
01:32:49]} {[%emt 00:00:22]} O-O {[%clk 01:32:03]} {[%emt 00:00:33]} 9. d4
{[%clk 01:33:00]} {[%emt 00:00:20]} e5 {[%clk 01:27:15]} {[%emt 00:05:18]} 10.
a4 {[%clk 01:26:58]} {[%emt 00:06:32]} Rb8 {[%clk 01:24:20]} {[%emt 00:03:24]}
11. a5 {[%clk 01:24:09]} {[%emt 00:03:20]} Qc7 {[%clk 01:19:58]} {[%emt
00:04:51]} 12. h3 {[%clk 01:17:27]} {[%emt 00:07:11]} b5 {[%clk 01:14:34]}
{[%emt 00:05:54]} 13. axb6 {[%clk 01:17:14]} {[%emt 00:00:44]} Nxb6 {[%clk
01:14:52]} {[%emt 00:00:11]} 14. Nbd2 {[%clk 01:13:26]} {[%emt 00:04:18]} Nh5
{[%clk 00:55:04]} {[%emt 00:20:18]} 15. Nf1 {[%clk 00:57:15]} {[%emt 00:16:41]}
cxd4 {[%clk 00:44:00]} {[%emt 00:11:35]} 16. cxd4 {[%clk 00:57:33]} {[%emt
00:00:12]} exd4 {[%clk 00:44:15]} {[%emt 00:00:14]} 17. Re2 {[%clk 00:53:44]}
{[%emt 00:04:19]} d5 {[%clk 00:41:12]} {[%emt 00:03:33]} 18. e5 {[%clk
00:52:38]} {[%emt 00:01:36]} Nc4 {[%clk 00:32:44]} {[%emt 00:08:58]} 19. g4
{[%clk 00:40:04]} {[%emt 00:13:03]} Nxe5 {[%clk 00:31:14]} {[%emt 00:02:00]} 20.
Nxe5 {[%clk 00:39:37]} {[%emt 00:00:57]} Bxe5 {[%clk 00:31:39]} {[%emt
00:00:06]} 21. gxh5 {[%clk 00:39:33]} {[%emt 00:00:35]} Bxh3 {[%clk 00:29:33]}
{[%emt 00:02:36]} 22. Qe1 {[%clk 00:33:22]} {[%emt 00:06:41]} Bd6 {[%clk
00:24:21]} {[%emt 00:05:41]} 23. Bh6 {[%clk 00:32:42]} {[%emt 00:01:10]} Qd7
{[%clk 00:22:07]} {[%emt 00:02:45]} 24. f3 {[%clk 00:27:23]} {[%emt 00:05:49]}
Rfc8 {[%clk 00:15:11]} {[%emt 00:07:25]} 25. Bd3 {[%clk 00:26:34]} {[%emt
00:01:19]} Kh8 {[%clk 00:12:30]} {[%emt 00:03:11]} 26. Qh4 {[%clk 00:25:36]}
{[%emt 00:01:27]} Bf8 {[%clk 00:08:01]} {[%emt 00:05:00]} 27. Qf6+ {[%clk
00:25:12]} {[%emt 00:00:54]} Kg8 {[%clk 00:08:26]} {[%emt 00:00:05]} 28. Bxf8
{[%clk 00:25:34]} {[%emt 00:00:08]} Rxf8 {[%clk 00:07:23]} {[%emt 00:01:33]} 29.
h6 {[%clk 00:25:59]} {[%emt 00:00:05]} Rfe8 {[%clk 00:07:23]} {[%emt 00:00:29]}
30. Qg7# {[%clk 00:26:21]} {[%emt 00:00:07]} 1-0

[Event "MCR zen 2022"]
[Site "Hotel Opera, Jaromerice nad Rokytnou, Czech Republic"]
[Date "????.??.??"]
[Round "8.2"]
[White "Sikorova, Olga"]
[Black "Petrova, Kristyna"]
[Result "1-0"]
[TimeControl "90 min/40 moves + 30 min + 30s/move"]
[WhiteClock "00:06:50"]
[BlackClock "00:11:18"]
[WhiteElo "2173"]
[BlackElo "2264"]

1. Nf3 {[%clk 01:30:56]} {[%emt 00:00:03]} c5 {[%clk 01:30:54]} {[%emt
00:00:06]} 2. c4 {[%clk 01:31:11]} {[%emt 00:00:16]} Nc6 {[%clk 01:31:19]}
{[%emt 00:00:05]} 3. Nc3 {[%clk 01:31:30]} {[%emt 00:00:11]} g6 {[%clk
01:30:47]} {[%emt 00:01:01]} 4. e3 {[%clk 01:30:39]} {[%emt 00:01:21]} Nf6
{[%clk 01:31:00]} {[%emt 00:00:17]} 5. d4 {[%clk 01:30:48]} {[%emt 00:00:21]}
cxd4 {[%clk 01:31:23]} {[%emt 00:00:07]} 6. exd4 {[%clk 01:31:12]} {[%emt
00:00:05]} d5 {[%clk 01:31:43]} {[%emt 00:00:10]} 7. Bg5 {[%clk 01:29:19]}
{[%emt 00:02:23]} Be6 {[%clk 01:31:08]} {[%emt 00:01:05]} 8. Bxf6 {[%clk
01:27:32]} {[%emt 00:02:17]} exf6 {[%clk 01:31:31]} {[%emt 00:00:07]} 9. c5
{[%clk 01:22:29]} {[%emt 00:05:33]} Bg7 {[%clk 01:31:35]} {[%emt 00:00:25]} 10.
Bb5 {[%clk 01:21:07]} {[%emt 00:01:52]} O-O {[%clk 01:28:52]} {[%emt 00:03:13]}
11. Bxc6 {[%clk 01:19:17]} {[%emt 00:02:20]} bxc6 {[%clk 01:29:19]} {[%emt
00:00:03]} 12. O-O {[%clk 01:19:01]} {[%emt 00:00:46]} Bg4 {[%clk 01:18:11]}
{[%emt 00:11:38]} 13. h3 {[%clk 01:16:43]} {[%emt 00:02:49]} Bxf3 {[%clk
01:18:27]} {[%emt 00:00:14]} 14. Qxf3 {[%clk 01:17:11]} {[%emt 00:00:02]} Rb8
{[%clk 01:16:56]} {[%emt 00:02:01]} 15. b3 {[%clk 01:06:02]} {[%emt 00:11:39]}
f5 {[%clk 01:15:27]} {[%emt 00:01:59]} 16. Rfd1 {[%clk 00:58:41]} {[%emt
00:07:50]} Qh4 {[%clk 00:59:28]} {[%emt 00:16:28]} 17. Ne2 {[%clk 00:50:26]}
{[%emt 00:08:45]} Rfe8 {[%clk 00:58:37]} {[%emt 00:01:21]} 18. Rd3 {[%clk
00:42:21]} {[%emt 00:08:36]} Re4 {[%clk 00:53:12]} {[%emt 00:05:54]} 19. Rad1
{[%clk 00:42:44]} {[%emt 00:00:07]} Rbe8 {[%clk 00:48:34]} {[%emt 00:05:08]} 20.
R3d2 {[%clk 00:42:00]} {[%emt 00:01:15]} h5 {[%clk 00:41:04]} {[%emt 00:07:59]}
21. b4 {[%clk 00:38:47]} {[%emt 00:03:44]} Qe7 {[%clk 00:37:35]} {[%emt
00:03:59]} 22. Nc3 {[%clk 00:30:11]} {[%emt 00:09:06]} Re1+ {[%clk 00:29:39]}
{[%emt 00:08:26]} 23. Kh2 {[%clk 00:30:27]} {[%emt 00:00:15]} h4 {[%clk
00:27:32]} {[%emt 00:02:37]} 24. Rxe1 {[%clk 00:29:49]} {[%emt 00:01:08]} Qxe1
{[%clk 00:27:24]} {[%emt 00:00:38]} 25. Rd1 {[%clk 00:29:53]} {[%emt 00:00:26]}
Qe6 {[%clk 00:24:06]} {[%emt 00:03:48]} 26. b5 {[%clk 00:26:05]} {[%emt
00:04:18]} cxb5 {[%clk 00:23:07]} {[%emt 00:01:29]} 27. Qxd5 {[%clk 00:25:15]}
{[%emt 00:01:20]} b4 {[%clk 00:22:15]} {[%emt 00:01:22]} 28. Qxe6 {[%clk
00:24:43]} {[%emt 00:01:02]} fxe6 {[%clk 00:22:44]} {[%emt 00:00:01]} 29. Nb5
{[%clk 00:24:34]} {[%emt 00:00:39]} a5 {[%clk 00:20:19]} {[%emt 00:02:55]} 30.
c6 {[%clk 00:19:36]} {[%emt 00:05:29]} Rc8 {[%clk 00:17:24]} {[%emt 00:03:26]}
31. c7 {[%clk 00:19:10]} {[%emt 00:00:56]} a4 {[%clk 00:17:09]} {[%emt
00:00:44]} 32. g3 {[%clk 00:18:39]} {[%emt 00:01:01]} hxg3+ {[%clk 00:11:18]}
{[%emt 00:06:22]} 33. fxg3 {[%clk 00:19:07]} {[%emt 00:00:02]} b3 {[%clk
00:11:23]} {[%emt 00:00:25]} 34. axb3 {[%clk 00:19:19]} {[%emt 00:00:19]} axb3
{[%clk 00:11:51]} {[%emt 00:00:01]} 35. Rb1 {[%clk 00:18:28]} {[%emt 00:01:20]}
Bxd4 {[%clk 00:11:06]} {[%emt 00:01:15]} 36. Nxd4 {[%clk 00:16:19]} {[%emt
00:02:39]} Rxc7 {[%clk 00:11:28]} {[%emt 00:00:08]} 37. Rxb3 {[%clk 00:15:20]}
{[%emt 00:01:30]} e5 {[%clk 00:11:15]} {[%emt 00:00:42]} 38. Nf3 {[%clk
00:14:43]} {[%emt 00:01:06]} Rc2+ {[%clk 00:11:15]} {[%emt 00:00:31]} 39. Kg1
{[%clk 00:14:24]} {[%emt 00:00:48]} e4 {[%clk 00:11:27]} {[%emt 00:00:18]} 40.
Nh4 {[%clk 00:06:08]} {[%emt 00:08:47]} Rc6 {[%clk 00:08:09]} {[%emt 00:03:48]}
41. Rb7 {[%clk 00:02:27]} {[%emt 00:04:12]} Rf6 {[%clk 00:03:03]} {[%emt
00:05:35]} 42. Rb5 {[%clk 00:25:12]} {[%emt 00:07:46]} Kg7 {[%clk 00:29:18]}
{[%emt 00:04:15]} 43. Ng2 {[%clk 00:21:38]} {[%emt 00:04:03]} Kh6 {[%clk
00:25:09]} {[%emt 00:04:39]} 44. h4 {[%clk 00:14:08]} {[%emt 00:08:01]} Ra6
{[%clk 00:20:18]} {[%emt 00:05:21]} 45. Kh2 {[%clk 00:13:02]} {[%emt 00:01:36]}
Rc6 {[%clk 00:19:13]} {[%emt 00:01:35]} 46. Kh3 {[%clk 00:12:33]} {[%emt
00:00:58]} Ra6 {[%clk 00:19:18]} {[%emt 00:00:25]} 47. Nf4 {[%clk 00:08:54]}
{[%emt 00:04:09]} Rf6 {[%clk 00:13:10]} {[%emt 00:06:38]} 48. Re5 {[%clk
00:08:17]} {[%emt 00:01:07]} Ra6 {[%clk 00:11:39]} {[%emt 00:02:00]} 49. Re6
{[%clk 00:07:51]} {[%emt 00:00:56]} Rxe6 {[%clk 00:12:06]} {[%emt 00:00:03]} 50.
Nxe6 {[%clk 00:08:17]} {[%emt 00:00:05]} Kh5 {[%clk 00:12:24]} {[%emt
00:00:12]} 51. Nd4 {[%clk 00:05:45]} {[%emt 00:03:02]} Kh6 {[%clk 00:08:51]}
{[%emt 00:04:03]} 52. g4 {[%clk 00:03:13]} {[%emt 00:03:01]} fxg4+ {[%clk
00:08:47]} {[%emt 00:00:34]} 53. Kxg4 {[%clk 00:03:43]} e3 {[%clk 00:08:59]}
{[%emt 00:00:18]} 54. Ne2 {[%clk 00:04:01]} {[%emt 00:00:12]} Kg7 {[%clk
00:09:06]} {[%emt 00:00:23]} 55. Kg5 {[%clk 00:03:05]} {[%emt 00:01:26]} Kh7
{[%clk 00:08:53]} {[%emt 00:00:43]} 56. Ng3 {[%clk 00:03:33]} {[%emt 00:00:01]}
Kg7 {[%clk 00:09:07]} {[%emt 00:00:16]} 57. Kf4 {[%clk 00:03:50]} {[%emt
00:00:14]} Kh6 {[%clk 00:06:49]} {[%emt 00:02:48]} 58. Kxe3 {[%clk 00:04:19]}
{[%emt 00:00:01]} g5 {[%clk 00:07:12]} {[%emt 00:00:07]} 59. h5 {[%clk
00:04:45]} {[%emt 00:00:03]} Kg7 {[%clk 00:07:36]} {[%emt 00:00:06]} 60. Ke4
{[%clk 00:05:11]} {[%emt 00:00:04]} Kf6 {[%clk 00:07:57]} {[%emt 00:00:09]} 61.
Kf3 {[%clk 00:05:29]} {[%emt 00:00:12]} Kg7 {[%clk 00:08:07]} {[%emt 00:00:20]}
62. Kg4 {[%clk 00:05:58]} Kh6 {[%clk 00:08:32]} {[%emt 00:00:05]} 63. Ne4
{[%clk 00:05:53]} {[%emt 00:00:35]} Kg7 {[%clk 00:08:52]} {[%emt 00:00:10]} 64.
Nd6 {[%clk 00:05:39]} {[%emt 00:00:44]} Kh6 {[%clk 00:09:01]} {[%emt 00:00:21]}
65. Nf5+ {[%clk 00:06:06]} {[%emt 00:00:04]} Kh7 {[%clk 00:09:28]} {[%emt
00:00:03]} 66. Kxg5 {[%clk 00:06:21]} {[%emt 00:00:15]} Kh8 {[%clk 00:09:55]}
{[%emt 00:00:01]} 67. Kg6 {[%clk 00:05:56]} {[%emt 00:00:56]} Kg8 {[%clk
00:10:24]} {[%emt 00:00:01]} 68. Nd6 {[%clk 00:06:11]} {[%emt 00:00:15]} Kh8
{[%clk 00:10:50]} {[%emt 00:00:03]} 69. h6 {[%clk 00:06:27]} {[%emt 00:00:15]}
Kg8 {[%clk 00:11:19]} 70. h7+ {[%clk 00:06:50]} {[%emt 00:00:07]} 1-0

[Event "MCR zen 2022"]
[Site "Hotel Opera, Jaromerice nad Rokytnou, Czech Republic"]
[Date "????.??.??"]
[Round "8.3"]
[White "Novosadova, Kristyna"]
[Black "Nemcova, Karin"]
[Result "1-0"]
[TimeControl "90 min/40 moves + 30 min + 30s/move"]
[WhiteElo "2147"]
[BlackElo "2181"]

1. e4 {[%clk 01:30:55]} {[%emt 00:00:04]} d5 {[%clk 01:30:54]} {[%emt
00:00:07]} 2. exd5 {[%clk 01:31:01]} {[%emt 00:00:25]} Qxd5 {[%clk 01:31:17]}
{[%emt 00:00:07]} 3. Nc3 {[%clk 01:31:14]} {[%emt 00:00:16]} Qa5 {[%clk
01:31:38]} {[%emt 00:00:09]} 4. d4 {[%clk 01:31:29]} {[%emt 00:00:15]} Nf6
{[%clk 01:31:57]} {[%emt 00:00:11]} 5. Bd2 {[%clk 01:31:29]} {[%emt 00:00:30]}
Bg4 {[%clk 01:32:02]} {[%emt 00:00:25]} 6. Nf3 {[%clk 01:30:02]} {[%emt
00:01:57]} e6 {[%clk 01:30:40]} {[%emt 00:01:52]} 7. h3 {[%clk 01:20:53]}
{[%emt 00:11:26]} Bxf3 {[%clk 01:25:40]} {[%emt 00:05:22]} 8. Qxf3 {[%clk
01:21:14]} {[%emt 00:00:08]} Nc6 {[%clk 01:21:18]} {[%emt 00:04:52]} 9. Nb5
{[%clk 01:14:39]} {[%emt 00:07:04]} Qb6 {[%clk 01:20:37]} {[%emt 00:01:11]} 10.
a4 {[%clk 01:10:24]} {[%emt 00:04:46]} a5 {[%clk 01:12:32]} {[%emt 00:08:35]}
11. O-O-O {[%clk 01:06:31]} {[%emt 00:04:22]} Nb4 {[%clk 01:05:13]} {[%emt
00:07:49]} 12. c4 {[%clk 00:58:12]} {[%emt 00:08:49]} c6 {[%clk 01:02:58]}
{[%emt 00:02:45]} 13. c5 {[%clk 00:57:22]} {[%emt 00:01:19]} Qd8 {[%clk
01:02:38]} {[%emt 00:00:52]} 14. Bf4 {[%clk 00:56:48]} {[%emt 00:01:03]} cxb5
{[%clk 00:48:28]} {[%emt 00:14:40]} 15. Qxb7 {[%clk 00:57:00]} {[%emt
00:00:18]} Be7 {[%clk 00:48:39]} {[%emt 00:00:19]} 16. Bxb5+ {[%clk 00:57:20]}
{[%emt 00:00:10]} Kf8 {[%clk 00:48:58]} {[%emt 00:00:12]} 17. Bc7 {[%clk
00:54:37]} {[%emt 00:03:13]} Qd5 {[%clk 00:45:51]} {[%emt 00:03:37]} 18. c6
{[%clk 00:54:19]} {[%emt 00:00:47]} Qb3 {[%clk 00:45:26]} {[%emt 00:00:56]} 19.
Qxa8+ {[%clk 00:53:23]} {[%emt 00:01:27]} Ne8 {[%clk 00:45:48]} {[%emt
00:00:07]} 20. Kd2 {[%clk 00:51:16]} {[%emt 00:02:37]} Bg5+ {[%clk 00:36:59]}
{[%emt 00:09:18]} 21. Ke2 {[%clk 00:39:54]} {[%emt 00:11:53]} Qc2+ {[%clk
00:32:54]} {[%emt 00:04:35]} 22. Ke1 {[%clk 00:39:53]} {[%emt 00:00:30]} g6
{[%clk 00:32:34]} {[%emt 00:00:50]} 23. Bxa5 {[%clk 00:30:45]} {[%emt
00:09:38]} Qe4+ {[%clk 00:29:42]} {[%emt 00:03:21]} 24. Kf1 {[%clk 00:30:49]}
{[%emt 00:00:26]} Nd5 {[%clk 00:29:25]} {[%emt 00:00:48]} 25. Be2 {[%clk
00:28:44]} {[%emt 00:02:35]} Kg7 {[%clk 00:27:45]} {[%emt 00:02:10]} 26. Qa6
{[%clk 00:24:39]} {[%emt 00:04:35]} Nf4 {[%clk 00:23:22]} {[%emt 00:04:53]} 27.
Bf3 {[%clk 00:24:37]} {[%emt 00:00:31]} Qc2 {[%clk 00:23:41]} {[%emt 00:00:12]}
28. Qb5 {[%clk 00:22:28]} {[%emt 00:02:39]} Nd5 {[%clk 00:23:26]} {[%emt
00:00:45]} 29. Qc5 {[%clk 00:19:45]} {[%emt 00:03:11]} Qxb2 {[%clk 00:20:40]}
{[%emt 00:03:18]} 30. c7 {[%clk 00:19:05]} {[%emt 00:01:10]} Bh4 {[%clk
00:18:50]} {[%emt 00:02:19]} 31. Be2 {[%clk 00:19:23]} {[%emt 00:00:11]} Nexc7
{[%clk 00:15:11]} {[%emt 00:04:10]} 32. Bxc7 {[%clk 00:19:45]} {[%emt
00:00:07]} Nc3 {[%clk 00:14:37]} {[%emt 00:01:05]} 33. Re1 {[%clk 00:16:56]}
{[%emt 00:03:18]} Ra8 {[%clk 00:13:39]} {[%emt 00:01:28]} 34. Be5+ {[%clk
00:16:37]} {[%emt 00:00:49]} f6 {[%clk 00:11:03]} {[%emt 00:03:06]} 35. Qe7+
{[%clk 00:16:34]} {[%emt 00:00:32]} 1-0

[Event "MCR zen 2022"]
[Site "Hotel Opera, Jaromerice nad Rokytnou, Czech Republic"]
[Date "????.??.??"]
[Round "8.4"]
[White "Koubova, Anna Marie"]
[Black "Zelbova, Lada"]
[Result "1/2-1/2"]
[TimeControl "90 min/40 moves + 30 min + 30s/move"]
[WhiteElo "2115"]
[BlackElo "1967"]

1. d4 {[%clk 01:30:52]} {[%emt 00:00:08]} Nf6 {[%clk 01:30:51]} {[%emt
00:00:09]} 2. c4 {[%clk 01:31:10]} {[%emt 00:00:11]} e6 {[%clk 01:31:14]}
{[%emt 00:00:07]} 3. g3 {[%clk 01:31:27]} {[%emt 00:00:14]} Bb4+ {[%clk
01:29:05]} {[%emt 00:02:39]} 4. Bd2 {[%clk 01:31:40]} {[%emt 00:00:16]} Qe7
{[%clk 01:28:46]} {[%emt 00:00:49]} 5. Bg2 {[%clk 01:31:20]} {[%emt 00:00:50]}
Nc6 {[%clk 01:26:22]} {[%emt 00:02:55]} 6. e3 {[%clk 01:31:13]} {[%emt
00:00:36]} d5 {[%clk 01:23:27]} {[%emt 00:03:25]} 7. Nc3 {[%clk 01:24:05]}
{[%emt 00:07:38]} Bxc3 {[%clk 01:16:08]} {[%emt 00:07:49]} 8. Bxc3 {[%clk
01:20:34]} {[%emt 00:04:02]} dxc4 {[%clk 01:12:10]} {[%emt 00:04:28]} 9. Nf3
{[%clk 01:19:44]} {[%emt 00:01:19]} O-O {[%clk 01:11:09]} {[%emt 00:01:32]} 10.
O-O {[%clk 01:19:10]} {[%emt 00:01:04]} Bd7 {[%clk 01:01:26]} {[%emt 00:10:13]}
11. Re1 {[%clk 01:05:38]} {[%emt 00:14:02]} Nd5 {[%clk 00:49:56]} {[%emt
00:12:00]} 12. Rc1 {[%clk 00:52:07]} {[%emt 00:14:01]} b5 {[%clk 00:44:10]}
{[%emt 00:06:16]} 13. e4 {[%clk 00:51:43]} {[%emt 00:00:54]} Nxc3 {[%clk
00:43:42]} {[%emt 00:00:58]} 14. Rxc3 {[%clk 00:51:58]} {[%emt 00:00:15]} Nb4
{[%clk 00:43:07]} {[%emt 00:01:05]} 15. a3 {[%clk 00:43:23]} {[%emt 00:09:07]}
Nd3 {[%clk 00:41:25]} {[%emt 00:02:10]} 16. Re2 {[%clk 00:43:39]} {[%emt
00:00:13]} e5 {[%clk 00:39:27]} {[%emt 00:02:29]} 17. Nxe5 {[%clk 00:40:57]}
{[%emt 00:03:13]} Nxe5 {[%clk 00:39:48]} {[%emt 00:00:09]} 18. dxe5 {[%clk
00:41:22]} {[%emt 00:00:05]} Rad8 {[%clk 00:33:26]} {[%emt 00:06:51]} 19. Rd2
{[%clk 00:39:07]} {[%emt 00:02:45]} Bg4 {[%clk 00:29:27]} {[%emt 00:04:30]} 20.
f3 {[%clk 00:36:49]} {[%emt 00:02:49]} Bc8 {[%clk 00:29:47]} {[%emt 00:00:10]}
21. f4 {[%clk 00:35:45]} {[%emt 00:01:33]} Bg4 {[%clk 00:27:35]} {[%emt
00:02:41]} 22. Bf3 {[%clk 00:33:07]} {[%emt 00:03:08]} Bxf3 {[%clk 00:24:50]}
{[%emt 00:03:16]} 23. Rxf3 {[%clk 00:33:24]} {[%emt 00:00:12]} Rxd2 {[%clk
00:24:22]} {[%emt 00:00:58]} 24. Qxd2 {[%clk 00:33:49]} {[%emt 00:00:05]} Rd8
{[%clk 00:24:05]} {[%emt 00:00:47]} 25. Qe2 {[%clk 00:19:25]} {[%emt 00:14:54]}
h6 {[%clk 00:23:02]} {[%emt 00:01:33]} 26. Rf1 {[%clk 00:18:19]} {[%emt
00:01:36]} Qc5+ {[%clk 00:21:50]} {[%emt 00:01:42]} 27. Kg2 {[%clk 00:16:46]}
{[%emt 00:02:02]} Rd3 {[%clk 00:20:30]} {[%emt 00:01:50]} 28. Qg4 {[%clk
00:11:42]} {[%emt 00:05:34]} Rd2+ {[%clk 00:15:33]} {[%emt 00:05:27]} 29. Kh3
{[%clk 00:11:05]} {[%emt 00:01:06]} Qe7 {[%clk 00:10:11]} {[%emt 00:05:53]} 30.
Rd1 {[%clk 00:10:16]} {[%emt 00:01:19]} Rxd1 {[%clk 00:08:54]} {[%emt
00:01:47]} 31. Qxd1 {[%clk 00:10:36]} {[%emt 00:00:10]} Kh7 {[%clk 00:07:45]}
{[%emt 00:01:39]} 32. Qd4 {[%clk 00:09:43]} {[%emt 00:01:24]} a6 {[%clk
00:06:11]} {[%emt 00:02:05]} 33. Kg2 {[%clk 00:09:28]} {[%emt 00:00:44]} Kg8
{[%clk 00:03:47]} {[%emt 00:02:54]} 34. Qd5 {[%clk 00:02:23]} {[%emt 00:07:35]}
c3 {[%clk 00:02:44]} {[%emt 00:01:33]} 35. bxc3 {[%clk 00:02:37]} {[%emt
00:00:16]} Qxa3 {[%clk 00:02:29]} {[%emt 00:00:44]} 36. Qd8+ {[%clk 00:02:49]}
{[%emt 00:00:18]} Kh7 {[%clk 00:02:28]} {[%emt 00:00:30]} 37. Qxc7 {[%clk
00:02:38]} {[%emt 00:00:41]} Qb2+ {[%clk 00:02:14]} {[%emt 00:00:44]} 38. Kh3
{[%clk 00:02:47]} {[%emt 00:00:20]} Qb3 {[%clk 00:01:24]} {[%emt 00:01:20]} 39.
Qa5 {[%clk 00:01:02]} {[%emt 00:02:16]} Qa4 {[%clk 00:00:46]} {[%emt 00:01:08]}
40. Qc7 {[%clk 00:00:55]} {[%emt 00:00:36]} Qc4 {[%clk 00:01:02]} {[%emt
00:00:14]} 41. Qa7 {[%clk 00:23:34]} {[%emt 00:07:51]} Qe6+ {[%clk 00:19:36]}
{[%emt 00:11:56]} 42. Kg2 {[%clk 00:23:13]} {[%emt 00:00:50]} Qc4 {[%clk
00:17:39]} {[%emt 00:02:26]} 43. Kh3 {[%clk 00:20:08]} {[%emt 00:03:36]} Qe6+
{[%clk 00:16:54]} {[%emt 00:01:16]} 44. f5 {[%clk 00:13:09]} {[%emt 00:07:29]}
Qc4 {[%clk 00:16:38]} {[%emt 00:00:45]} 45. Qxa6 {[%clk 00:09:22]} {[%emt
00:04:17]} 1/2-1/2